bitfinex/quotes_SOLUSD_20250318
["timestamp","ask_amount","ask_price","bid_price","bid_amount"]
[1742307994627,16.71102476,122.34,122.31,0.03]
[1742307995032,20.0,122.35,122.31,0.03]
[1742307995262,36.71102476,122.35,122.31,0.31432314]
[1742307995460,36.71102476,122.35,122.32,7.94]
[1742308001162,16.71102476,122.34,122.32,7.94]
[1742308001548,16.71102476,122.33,122.32,7.94]
[1742308001870,16.71102476,122.33,122.31,0.03]
[1742308002657,16.71102476,122.32,122.31,0.03]
[1742308005664,24.88622476,122.32,122.31,0.03]
[1742308005851,16.71102476,122.32,122.31,0.03]
[1742308009560,20.0,122.32,122.31,0.03]
[1742308009767,36.71102476,122.32,122.31,0.03]
[1742308010484,36.71102476,122.34,122.31,0.03]
[1742308011805,16.71102476,122.34,122.31,0.03]
[1742308011972,16.77402476,122.35,122.31,16.88318633]
[1742308012552,0.063,122.35,122.31,16.88318633]
[1742308012778,0.063,122.35,122.32,16.9953479]
[1742308013176,0.063,122.35,122.33,0.14216157]
[1742308013359,0.063,122.35,122.33,16.85318633]
[1742308013561,0.063,122.35,122.34,7.94]
[1742308014360,0.063,122.35,122.34,25.07750947]
[1742308014564,0.063,122.35,122.34,26.63310947]
[1742308015489,0.063,122.35,122.34,36.02315954]
[1742308015792,0.063,122.35,122.34,54.6728084]
[1742308016087,0.063,122.35,122.34,80.77388323]
[1742308016679,0.063,122.35,122.34,81.27388323]
[1742308018169,26.16407483,122.44,122.4,0.14216157]
[1742308018373,0.063,122.44,122.41,0.42648471]
[1742308018579,0.063,122.44,122.41,26.52755954]
[1742308018977,0.063,122.44,122.42,26.10107483]
[1742308019346,0.063,122.44,122.43,0.42648471]
[1742308020185,0.063,122.44,122.42,0.28432314]
[1742308022688,0.063,122.44,122.43,0.42648471]
[1742308022883,0.063,122.44,122.43,26.38539797]
[1742308023296,0.063,122.44,122.43,0.28432314]
[1742308024401,0.063,122.44,122.43,0.42648471]
[1742308025296,0.063,122.44,122.43,0.28432314]
[1742308025801,0.063,122.44,122.41,0.42648471]
[1742308026011,0.063,122.44,122.41,26.52755954]
[1742308027201,0.063,122.44,122.43,0.42648471]
[1742308027601,0.063,122.44,122.43,0.28432314]
[1742308027978,0.063,122.44,122.43,0.42648471]
[1742308028178,0.063,122.44,122.43,0.28432314]
[1742308029588,0.063,122.44,122.43,0.42648471]
[1742308029775,0.063,122.44,122.43,0.28432314]
[1742308030212,0.063,122.44,122.41,26.2432364]
[1742308030381,0.063,122.44,122.41,0.14216157]
[1742308030586,0.063,122.44,122.38,24.82141043]
[1742308030587,26.10107483,122.43,122.4,7.92]
[1742308030787,26.16407483,122.44,122.4,7.92]
[1742308030991,0.063,122.44,122.41,0.42648471]
[1742308031305,0.063,122.44,122.42,26.10107483]
[1742308031512,0.063,122.44,122.42,0.28432314]
[1742308035711,26.16407483,122.44,122.41,0.14216157]
[1742308035892,26.16407483,122.44,122.41,0.42648471]
[1742308036309,26.10107483,122.43,122.4,7.92]
[1742308036815,26.16407483,122.44,122.4,7.92]
[1742308038716,26.10107483,122.43,122.4,7.92]
[1742308041611,0.063,122.44,122.4,34.02107483]
[1742308041847,0.063,122.44,122.41,19.07613357]
[1742308041993,0.063,122.44,122.43,0.42648471]
[1742308042507,20.063,122.44,122.42,26.10107483]
[1742308042710,26.10107483,122.43,122.36,8.06216157]
[1742308042898,1.654,122.44,122.36,8.06216157]
[1742308042899,26.10107483,122.4,122.36,8.06216157]
[1742308043209,16.70389752,122.4,122.36,8.06216157]
[1742308043509,16.70389752,122.39,122.37,7.92]
[1742308043812,16.70389752,122.39,122.36,7.92]
[1742308044691,16.70389752,122.4,122.36,7.92]
[1742308045195,26.1037794,122.38,122.36,7.92]
[1742308045586,26.1037794,122.39,122.36,7.92]
[1742308046520,83.454,122.44,122.37,0.42648471]
[1742308046710,83.454,122.44,122.37,26.53026411]
[1742308047009,26.1037794,122.43,122.38,26.1037794]
[1742308047207,0.063,122.44,122.4,26.53026411]
[1742308047390,0.063,122.44,122.42,0.42648471]
[1742308048506,26.1037794,122.43,122.37,0.28432314]
[1742308048716,26.1037794,122.41,122.37,0.42648471]
[1742308049097,26.1037794,122.42,122.37,45.17991297]
[1742308049304,26.1037794,122.43,122.38,26.1037794]
[1742308050008,0.063,122.44,122.39,52.80501297]
[1742308050217,0.063,122.44,122.4,34.0237794]
[1742308050723,0.063,122.44,122.42,0.42648471]
[1742308051926,0.063,122.44,122.42,0.28432314]
[1742308052800,0.063,122.44,122.37,0.5]
[1742308052801,26.1037794,122.43,122.37,0.14216157]
[1742308053016,26.1037794,122.41,122.37,0.14216157]
[1742308053522,26.1037794,122.41,122.37,0.42648471]
[1742308054621,0.063,122.44,122.37,28.10386411]
[1742308054801,26.1037794,122.42,122.39,0.42648471]
[1742308055811,0.063,122.44,122.39,0.42648471]
[1742308055812,26.1037794,122.41,122.39,0.42648471]
[1742308056011,26.1037794,122.4,122.35,0.03]
[1742308056203,26.1037794,122.37,122.35,0.03]
[1742308056403,26.1037794,122.37,122.35,0.31432314]
[1742308056722,26.1037794,122.37,122.35,0.03]
[1742308057810,1.5544,122.42,122.35,0.03]
[1742308057811,26.1037794,122.38,122.35,0.03]
[1742308058009,1.5544,122.42,122.35,0.03]
[1742308058010,26.1037794,122.37,122.35,0.03]
[1742308058412,26.1037794,122.36,122.35,0.03]
[1742308058615,26.1037794,122.37,122.35,0.03]
[1742308059000,26.1037794,122.36,122.35,0.03]
[1742308062002,20.0,122.33,122.31,0.03]
[1742308062209,26.1037794,122.32,122.31,0.03]
[1742308063219,20.0,122.3,122.29,0.03]
[1742308063426,53.7350588,122.3,122.28,0.03]
[1742308063625,72.2075588,122.29,122.28,0.03]
[1742308064226,46.1037794,122.29,122.28,0.03]
[1742308067505,61.84833431,122.29,122.28,0.03]
[1742308070732,18.64964886,122.33,122.28,0.03]
[1742308070733,61.84833431,122.3,122.28,0.03]
[1742308070914,20.0,122.3,122.28,0.03]
[1742308071108,61.84833431,122.3,122.28,0.03]
[1742308071309,41.84833431,122.29,122.28,0.03]
[1742308071927,41.84833431,122.3,122.28,0.17216157]
[1742308072108,41.84833431,122.3,122.28,0.45648471]
[1742308072309,41.84833431,122.31,122.28,0.45648471]
[1742308072708,41.84833431,122.32,122.28,0.45648471]
[1742308073123,41.84833431,122.31,122.28,0.45648471]
[1742308073517,41.84833431,122.3,122.28,0.45648471]
[1742308075016,41.84833431,122.29,122.28,0.03]
[1742308078208,41.84833431,122.3,122.28,0.03]
[1742308079325,41.84833431,122.29,122.28,0.03]
[1742308082753,85.24706862,122.29,122.28,0.03]
[1742308083256,43.39873431,122.29,122.28,0.03]
[1742308083418,61.84833431,122.29,122.28,0.03]
[1742308083838,41.84833431,122.29,122.28,0.03]
[1742308084846,41.91133431,122.29,122.28,0.03]
[1742308085938,41.91133431,122.29,122.28,0.45648471]
[1742308085939,0.063,122.29,122.28,0.45648471]
[1742308086139,41.91133431,122.29,122.28,0.03]
[1742308089325,46.21926858,122.29,122.28,0.03]
[1742308090457,72.37553716,122.29,122.28,0.03]
[1742308090944,100.94707073,122.29,122.26,0.03]
[1742308091143,26.15626858,122.27,122.26,0.03]
[1742308091943,6.3937,122.26,122.24,0.03]
[1742308092147,107.95626858,122.25,122.23,0.03]
[1742308092348,26.15626858,122.24,122.23,0.03]
[1742308093138,41.89664879,122.24,122.23,0.03]
[1742308094149,83.79329758,122.24,122.23,0.03]
[1742308094446,103.79329758,122.23,122.17,7.92]
[1742308097853,105.45769758,122.23,122.16,0.28432314]
[1742308098043,41.89664879,122.17,122.16,0.42648471]
[1742308098245,41.89664879,122.18,122.16,0.42648471]
[1742308098966,41.89664879,122.22,122.16,0.42648471]
[1742308099258,41.89664879,122.18,122.16,0.42648471]
[1742308099438,41.89664879,122.19,122.16,0.42648471]
[1742308099842,41.89664879,122.18,122.16,0.42648471]
[1742308100643,41.89664879,122.18,122.15,6.1486]
[1742308100846,41.89664879,122.17,122.15,6.1486]
[1742308101336,41.89664879,122.18,122.15,6.1486]
[1742308102639,46.07426092,122.22,122.16,0.42648471]
[1742308102844,41.89664879,122.19,122.16,0.42648471]
[1742308103559,41.89664879,122.18,122.16,0.42648471]
[1742308104554,46.07426092,122.22,122.15,14.0686]
[1742308104859,41.89664879,122.18,122.15,14.0686]
[1742308105237,41.89664879,122.17,122.15,14.0686]
[1742308105439,41.89664879,122.18,122.15,14.0686]
[1742308107151,127.87426092,122.22,122.15,14.0686]
[1742308107349,41.89664879,122.18,122.15,14.0686]
[1742308107749,41.89664879,122.18,122.15,7.95]
[1742308108273,41.89664879,122.18,122.15,0.45648471]
[1742308108643,41.89664879,122.17,122.15,0.45648471]
[1742308109766,41.89664879,122.18,122.15,0.45648471]
[1742308110149,41.89664879,122.16,122.15,0.03]
[1742308112268,41.89664879,122.17,122.15,0.03]
[1742308113355,7.92,122.21,122.15,8.37648471]
[1742308113667,41.89664879,122.18,122.15,8.37648471]
[1742308114253,41.95964879,122.22,122.15,8.37648471]
[1742308114555,41.89664879,122.19,122.15,8.37648471]
[1742308114754,41.89664879,122.18,122.15,8.37648471]
[1742308115263,26.19341567,122.18,122.15,8.37648471]
[1742308115570,26.19341567,122.19,122.15,8.37648471]
[1742308116158,0.063,122.22,122.16,0.14216157]
[1742308116461,26.19341567,122.2,122.16,26.61990038]
[1742308117471,26.19341567,122.21,122.16,26.61990038]
[1742308117777,0.063,122.22,122.21,18.64964886]
[1742308118069,0.063,122.22,122.21,53.18954924]
[1742308118859,0.063,122.22,122.21,59.77674924]
[1742308120186,0.063,122.22,122.21,66.33843337]
[1742308120480,0.063,122.22,122.21,59.77674924]
[1742308123156,0.063,122.22,122.21,33.58333357]
[1742308123377,0.063,122.22,122.21,8.34648471]
[1742308123759,0.063,122.22,122.21,8.06216157]
[1742308123974,0.063,122.22,122.21,8.34648471]
[1742308124359,0.063,122.22,122.21,0.42648471]
[1742308124558,0.063,122.22,122.21,8.34648471]
[1742308129970,0.063,122.22,122.21,53.18954924]
[1742308131479,0.063,122.22,122.21,223.72276491]
[1742308131984,0.063,122.29,122.25,19.07613357]
[1742308132174,0.063,122.29,122.28,0.42648471]
[1742308132959,0.063,122.29,122.28,0.28432314]
[1742308133171,0.063,122.29,122.27,0.42648471]
[1742308134171,26.25641567,122.29,122.27,0.42648471]
[1742308135387,0.063,122.29,122.27,0.42648471]
[1742308136192,0.063,122.29,122.27,45.26954924]
[1742308136999,0.063,122.29,122.27,19.07613357]
[1742308137181,0.063,122.29,122.28,26.61990038]
[1742308139582,0.063,122.29,122.28,19.07613357]
[1742308140584,0.063,122.29,122.28,45.26954924]
[1742308140787,0.063,122.29,122.28,19.07613357]
[1742308141091,0.063,122.29,122.28,45.26954924]
[1742308142389,26.25641567,122.35,122.29,19.07613357]
[1742308142688,0.063,122.35,122.32,0.42648471]
[1742308142980,0.063,122.35,122.32,45.26954924]
[1742308145376,0.063,122.35,122.32,0.42648471]
[1742308145576,26.25641567,122.35,122.32,0.42648471]
[1742308146094,26.25641567,122.35,122.32,8.32648471]
[1742308146477,0.063,122.35,122.32,8.32648471]
[1742308147093,0.063,122.35,122.32,34.51990038]
[1742308147885,26.25641567,122.35,122.32,8.32648471]
[1742308148185,0.063,122.35,122.32,8.32648471]
[1742308149088,0.063,122.35,122.34,0.42648471]
[1742308149398,0.063,122.35,122.34,19.07613357]
[1742308150281,0.063,122.35,122.34,45.26954924]
[1742308152699,0.063,122.35,122.34,46.49521267]
[1742308153981,0.063,122.35,122.34,45.26954924]
[1742308155800,0.063,122.35,122.34,53.16954924]
[1742308156783,0.063,122.35,122.34,26.97613357]
[1742308156991,0.063,122.35,122.34,7.9]
[1742308157579,0.063,122.35,122.34,8.04216157]
[1742308157786,0.063,122.35,122.34,8.32648471]
[1742308157981,0.063,122.35,122.34,34.51990038]
[1742308158301,0.063,122.35,122.34,8.32648471]
[1742308160785,0.063,122.35,122.34,26.97613357]
[1742308161089,0.063,122.35,122.34,53.16954924]
[1742308161607,0.063,122.35,122.34,26.97613357]
[1742308161801,0.063,122.35,122.34,53.16954924]
[1742308163508,27.78231567,122.39,122.34,53.16954924]
[1742308163509,0.063,122.41,122.4,20.14216157]
[1742308163692,0.063,122.41,122.4,74.394529]
[1742308165391,0.063,122.41,122.4,73.16954924]
[1742308165696,0.063,122.41,122.4,46.97613357]
[1742308166226,0.063,122.41,122.4,26.97613357]
[1742308166603,0.063,122.41,122.4,53.16954924]
[1742308167698,0.063,122.41,122.4,79.36296491]
[1742308168020,0.063,122.41,122.4,53.16954924]
[1742308168511,0.063,122.44,122.43,20.14216157]
[1742308168709,0.063,122.44,122.43,46.49420587]
[1742308171206,0.063,122.44,122.43,45.26954924]
[1742308171406,0.063,122.44,122.43,46.49439933]
[1742308172626,0.063,122.44,122.43,45.26954924]
[1742308172928,0.063,122.44,122.43,19.07613357]
[1742308173099,0.063,122.44,122.43,26.95613357]
[1742308173497,0.063,122.44,122.43,53.14954924]
[1742308174820,0.063,122.44,122.43,26.95613357]
[1742308175219,0.063,122.44,122.43,53.14954924]
[1742308175531,0.063,122.44,122.43,26.95613357]
[1742308176021,0.063,122.44,122.43,54.37444041]
[1742308176226,0.063,122.44,122.43,53.14954924]
[1742308180024,0.063,122.44,122.43,191.24954924]
[1742308180436,0.063,122.44,122.43,191.27954924]
[1742308180928,0.063,122.44,122.43,45.15738767]
[1742308181133,0.063,122.44,122.43,53.03738767]
[1742308181439,0.063,122.44,122.43,53.17954924]
[1742308182617,0.063,122.44,122.43,26.98613357]
[1742308182823,0.063,122.44,122.43,191.27954924]
[1742308183028,0.063,122.47,122.46,45.26954924]
[1742308183315,0.063,122.47,122.46,46.4939371]
[1742308183535,0.063,122.47,122.46,72.68735277]
[1742308183712,0.063,122.47,122.46,46.4939371]
[1742308184465,0.063,122.47,122.46,72.68735277]
[1742308185125,0.063,122.47,122.46,210.78735277]
[1742308185436,0.063,122.47,122.46,209.56296491]
[1742308186246,0.063,122.47,122.46,73.06766491]
[1742308186415,0.063,122.47,122.46,212.39189]
[1742308186746,0.063,122.47,122.46,211.16766491]
[1742308187509,0.063,122.47,122.46,183.36954924]
[1742308187940,0.063,122.47,122.46,191.24954924]
[1742308190734,26.25641567,122.47,122.43,0.03]
[1742308191053,26.25641567,122.47,122.45,7.88]
[1742308191227,26.19341567,122.46,122.45,7.88]
[1742308191568,26.19341567,122.46,122.45,8.30648471]
[1742308191974,26.25641567,122.47,122.45,8.30648471]
[1742308192444,0.063,122.47,122.45,8.30648471]
[1742308192862,26.25641567,122.47,122.45,8.30648471]
[1742308193067,0.063,122.47,122.45,8.30648471]
[1742308194238,0.063,122.47,122.46,71.46296491]
[1742308194535,0.063,122.47,122.46,184.59440359]
[1742308194729,0.063,122.47,122.46,157.17613357]
[1742308195038,0.063,122.47,122.46,183.36954924]
[1742308195946,0.063,122.47,122.46,53.14954924]
[1742308196149,0.063,122.47,122.46,26.95613357]
[1742308196484,0.063,122.47,122.46,53.14954924]
[1742308198264,0.063,122.47,122.46,192.47404353]
[1742308198443,0.063,122.47,122.46,191.24954924]
[1742308200249,0.063,122.47,122.46,165.05613357]
[1742308200452,0.063,122.47,122.46,191.24954924]
[1742308201448,0.063,122.47,122.46,217.44296491]
[1742308202175,0.063,122.47,122.46,79.34296491]
[1742308202383,0.063,122.5,122.49,39.07613357]
[1742308202684,0.063,122.5,122.49,204.59347783]
[1742308202869,0.063,122.5,122.49,18.933972]
[1742308203375,0.063,122.5,122.49,19.07613357]
[1742308203576,0.063,122.5,122.49,18.933972]
[1742308203949,0.063,122.5,122.49,45.26954924]
[1742308204848,0.063,122.5,122.49,46.49343968]
[1742308206647,0.063,122.5,122.49,184.59343968]
[1742308206844,0.063,122.5,122.49,183.36954924]
[1742308210266,0.063,122.52,122.51,0.14216157]
[1742308210463,0.063,122.52,122.51,54.37329915]
[1742308211159,0.063,122.52,122.51,53.14954924]
[1742308211370,0.063,122.52,122.51,26.95613357]
[1742308211778,0.063,122.52,122.51,53.14954924]
[1742308211984,0.063,122.52,122.51,18.79181043]
[1742308212164,0.063,122.52,122.51,26.95613357]
[1742308212360,0.063,122.52,122.51,26.67181043]
[1742308212777,0.063,122.52,122.51,26.95613357]
[1742308212967,0.063,122.52,122.51,45.26954924]
[1742308213166,0.063,122.52,122.51,53.14954924]
[1742308216262,0.063,122.52,122.51,26.95613357]
[1742308217670,0.063,122.52,122.51,53.12954924]
[1742308217886,0.063,122.52,122.51,26.93613357]
[1742308218767,0.063,122.52,122.51,26.793972]
[1742308219472,0.063,122.52,122.51,53.12954924]
[1742308219662,0.063,122.52,122.51,26.93613357]
[1742308220776,0.063,122.52,122.51,53.12954924]
[1742308221890,0.063,122.52,122.51,26.93613357]
[1742308223385,0.063,122.52,122.51,8.28648471]
[1742308223687,0.063,122.52,122.49,0.14216157]
[1742308223688,27.83141567,122.52,122.49,0.14216157]
[1742308223881,27.83141567,122.52,122.49,0.42648471]
[1742308224189,27.83141567,122.52,122.49,0.14216157]
[1742308224685,26.19341567,122.51,122.48,223.903]
[1742308224987,26.19341567,122.51,122.48,7.923]
[1742308225579,26.19341567,122.49,122.48,0.063]
[1742308226087,26.19341567,122.5,122.48,0.063]
[1742308226280,26.19341567,122.49,122.48,0.063]
[1742308228288,6.1677,122.5,122.48,0.063]
[1742308228479,32.36111567,122.5,122.48,0.063]
[1742308229528,26.19341567,122.49,122.48,0.063]
[1742308230292,6.1677,122.5,122.48,0.063]
[1742308230594,26.19341567,122.49,122.48,0.063]
[1742308234885,6.1677,122.5,122.48,0.063]
[1742308235086,26.19341567,122.49,122.48,0.063]
[1742308235300,32.36111567,122.5,122.48,0.063]
[1742308235489,26.19341567,122.5,122.48,0.063]
[1742308236017,21.638,122.52,122.48,0.063]
[1742308236196,26.19341567,122.5,122.48,0.063]
[1742308236394,1.638,122.52,122.49,0.42648471]
[1742308237695,27.83141567,122.52,122.49,0.42648471]
[1742308238685,1.638,122.52,122.49,0.42648471]
[1742308238905,27.83141567,122.52,122.49,0.42648471]
[1742308239321,26.19341567,122.5,122.48,7.923]
[1742308239988,21.638,122.52,122.48,7.923]
[1742308240202,21.638,122.52,122.49,0.42648471]
[1742308240203,1.638,122.52,122.49,0.42648471]
[1742308240407,27.83141567,122.52,122.49,0.42648471]
[1742308240787,1.638,122.52,122.49,0.42648471]
[1742308240985,27.83141567,122.52,122.49,0.42648471]
[1742308241183,0.063,122.52,122.49,45.26954924]
[1742308242289,26.19341567,122.51,122.48,7.923]
[1742308242508,26.19341567,122.5,122.48,7.923]
[1742308243308,26.19341567,122.49,122.48,0.063]
[1742308243891,46.19341567,122.5,122.48,0.063]
[1742308244403,20.063,122.52,122.48,0.34732314]
[1742308244603,26.19341567,122.51,122.48,0.34732314]
[1742308244811,26.19341567,122.5,122.48,0.34732314]
[1742308245613,26.19341567,122.51,122.48,0.34732314]
[1742308246716,0.063,122.52,122.49,8.00216157]
[1742308246717,26.25641567,122.52,122.49,8.00216157]
[1742308246897,0.063,122.52,122.49,8.00216157]
[1742308247214,26.25641567,122.52,122.49,8.00216157]
[1742308248814,26.19341567,122.51,122.49,8.00216157]
[1742308249018,26.19341567,122.51,122.49,0.14216157]
[1742308249217,0.063,122.52,122.48,8.20732314]
[1742308249420,0.063,122.52,122.5,0.42648471]
[1742308249807,26.25641567,122.52,122.48,7.923]
[1742308250119,0.063,122.52,122.48,7.923]
[1742308250321,26.19341567,122.51,122.48,7.923]
[1742308251099,26.19341567,122.5,122.48,7.923]
[1742308251902,26.19341567,122.49,122.48,7.923]
[1742308252121,26.19341567,122.49,122.48,0.063]
[1742308255930,20.0,122.46,122.44,0.063]
[1742308256110,26.19341567,122.45,122.44,0.063]
[1742308260520,27.74261567,122.45,122.44,0.063]
[1742308262607,109.54261567,122.45,122.43,0.03]
[1742308262804,26.19341567,122.44,122.43,0.03]
[1742308263339,20.0,122.41,122.36,223.84]
[1742308263548,26.19341567,122.41,122.38,0.28432314]
[1742308263847,81.8,122.44,122.38,0.28432314]
[1742308264017,26.19341567,122.4,122.38,0.28432314]
[1742308264216,26.19341567,122.39,122.36,7.86]
[1742308264627,20.0,122.41,122.37,19.07613357]
[1742308264836,26.19341567,122.42,122.37,45.26954924]
[1742308265935,26.19341567,122.41,122.37,19.07613357]
[1742308266118,26.19341567,122.4,122.37,19.07613357]
[1742308266739,26.19341567,122.41,122.37,19.07613357]
[1742308268738,83.3792,122.45,122.37,19.07613357]
[1742308268739,26.19341567,122.42,122.37,45.26954924]
[1742308269440,26.19341567,122.44,122.4,0.28432314]
[1742308269633,26.19341567,122.44,122.41,0.14216157]
[1742308269939,0.03,122.45,122.44,0.14216157]
[1742308270246,0.03,122.45,122.44,26.93613357]
[1742308270824,0.03,122.45,122.44,53.12954924]
[1742308271019,0.03,122.45,122.44,8.28648471]
[1742308271346,26.22341567,122.45,122.44,7.86]
[1742308271551,26.22341567,122.45,122.41,7.86]
[1742308271735,26.19341567,122.43,122.41,7.86]
[1742308271932,26.19341567,122.42,122.41,7.86]
[1742308272247,26.19341567,122.42,122.39,0.14216157]
[1742308272445,26.19341567,122.41,122.39,0.14216157]
[1742308272758,26.19341567,122.41,122.39,0.42648471]
[1742308272943,26.19341567,122.42,122.39,0.42648471]
[1742308273134,26.19341567,122.42,122.39,0.14216157]
[1742308273529,0.03,122.45,122.39,0.42648471]
[1742308273761,26.19341567,122.42,122.39,0.42648471]
[1742308274734,26.19341567,122.42,122.38,223.98]
[1742308274945,26.19341567,122.41,122.38,223.98]
[1742308275469,26.19341567,122.43,122.39,0.42648471]
[1742308276323,26.19341567,122.44,122.39,19.07613357]
[1742308276729,26.19341567,122.43,122.39,19.07613357]
[1742308278835,26.19341567,122.42,122.39,0.14216157]
[1742308279177,26.19341567,122.4,122.37,0.14216157]
[1742308279760,26.19341567,122.4,122.39,0.063]
[1742308282755,52.38683134,122.4,122.39,0.063]
[1742308284254,134.18683134,122.4,122.39,0.063]
[1742308284556,107.99341567,122.4,122.39,0.063]
[1742308284735,134.18683134,122.4,122.39,0.063]
[1742308285346,107.99341567,122.4,122.39,0.063]
[1742308288440,26.19341567,122.4,122.39,0.063]
[1742308289940,81.8,122.43,122.39,0.063]
[1742308290141,26.19341567,122.4,122.39,0.063]
[1742308291156,26.19341567,122.41,122.39,0.063]
[1742308292456,26.19341567,122.4,122.39,0.063]
[1742308292655,26.19341567,122.41,122.39,0.063]
[1742308294142,26.19341567,122.42,122.39,0.063]
[1742308294340,0.03,122.43,122.39,0.063]
[1742308294539,26.19341567,122.41,122.39,0.063]
[1742308296651,26.19341567,122.42,122.39,0.063]
[1742308298763,26.19341567,122.41,122.39,0.063]
[1742308299150,0.03,122.43,122.39,0.063]
[1742308299151,26.19341567,122.4,122.39,0.063]
[1742308306666,81.8,122.42,122.39,0.063]
[1742308306977,26.19341567,122.4,122.39,0.063]
[1742308309182,81.8,122.42,122.39,0.063]
[1742308309385,16.70680564,122.4,122.39,0.063]
[1742308309581,81.8,122.42,122.39,0.063]
[1742308309882,16.70680564,122.4,122.39,0.063]
[1742308310263,98.50680564,122.42,122.39,0.063]
[1742308310464,16.70680564,122.42,122.39,0.063]
[1742308311191,16.73680564,122.43,122.4,7.86]
[1742308311361,26.09070237,122.42,122.4,7.86]
[1742308311962,26.09070237,122.41,122.4,7.86]
[1742308312182,0.03,122.43,122.4,7.86]
[1742308312394,26.09070237,122.42,122.4,7.86]
[1742308312609,26.09070237,122.41,122.4,7.86]
[1742308312903,26.09070237,122.41,122.39,0.063]
[1742308313112,26.09070237,122.4,122.39,0.063]
[1742308320297,52.18140474,122.4,122.39,0.063]
[1742308320495,26.09070237,122.4,122.39,0.063]
[1742308321007,52.18140474,122.4,122.39,0.063]
[1742308323620,26.09070237,122.4,122.39,0.063]
[1742308327601,81.8,122.41,122.39,0.063]
[1742308328106,107.89070237,122.41,122.39,0.063]
[1742308328428,0.03,122.43,122.39,0.063]
[1742308328718,26.09070237,122.42,122.39,0.063]
[1742308329516,0.03,122.43,122.39,0.063]
[1742308329517,26.09070237,122.41,122.39,0.063]
[1742308329716,26.09070237,122.4,122.39,0.063]
[1742308331124,81.8,122.42,122.39,0.063]
[1742308331516,26.12070237,122.43,122.39,0.063]
[1742308331914,26.12070237,122.43,122.39,7.923]
[1742308332117,26.09070237,122.42,122.39,7.923]
[1742308332317,26.09070237,122.41,122.39,7.923]
[1742308334442,26.09070237,122.4,122.39,0.063]
[1742308343450,26.09070237,122.41,122.39,0.063]
[1742308344381,26.09070237,122.4,122.39,0.063]
[1742308344947,26.09070237,122.41,122.39,0.063]
[1742308345348,16.70216844,122.41,122.39,0.063]
[1742308346167,98.50216844,122.42,122.39,0.063]
[1742308346550,16.70216844,122.42,122.39,0.063]
[1742308346755,16.73216844,122.43,122.39,0.48948471]
[1742308347950,16.70216844,122.42,122.39,0.48948471]
[1742308348676,16.73216844,122.43,122.39,0.48948471]
[1742308349178,0.03,122.43,122.39,17.19165315]
[1742308349382,0.03,122.43,122.41,8.2197]
[1742308349669,0.03,122.43,122.42,7.84]
[1742308350558,0.03,122.43,122.42,26.91613357]
[1742308350875,0.03,122.43,122.42,43.61830201]
[1742308351370,0.03,122.43,122.42,8.26648471]
[1742308351571,0.03,122.43,122.42,7.84]
[1742308352374,0.03,122.43,122.42,43.61830201]
[1742308353254,0.03,122.43,122.42,52.98061655]
[1742308356572,0.03,122.43,122.42,19.07613357]
[1742308356756,0.03,122.43,122.42,26.91613357]
[1742308357158,0.03,122.43,122.42,52.98061655]
[1742308357363,0.03,122.43,122.42,53.04361655]
[1742308358385,0.03,122.43,122.42,45.20361655]
[1742308358568,0.03,122.43,122.42,53.04361655]
[1742308359665,0.03,122.43,122.42,54.26863594]
[1742308360273,0.03,122.43,122.42,53.04361655]
[1742308360476,0.03,122.43,122.42,26.97913357]
[1742308360768,0.03,122.43,122.42,53.04361655]
[1742308361371,0.03,122.43,122.42,54.26848118]
[1742308361781,0.03,122.43,122.42,52.75929341]
[1742308362169,0.03,122.43,122.42,53.04361655]
[1742308362875,0.03,122.43,122.42,54.26859979]
[1742308363065,0.03,122.43,122.42,53.04361655]